bitfinex/quotes_SOLUSD_20240912
["timestamp","ask_amount","ask_price","bid_price","bid_amount"]
[1726108108384,6.6459,135.42,135.37,23.2686]
[1726108109368,6.6455,135.43,135.38,6.6478]
[1726108112054,6.6455,135.43,135.39,6.6474]
[1726108112669,6.6455,135.43,135.38,6.6478]
[1726108113592,6.6465,135.41,135.37,16.6203]
[1726108113788,6.6465,135.41,135.36,6.6488]
[1726108114277,6.6465,135.41,135.37,6.6484]
[1726108114662,6.6465,135.41,135.35,15.3221]
[1726108114871,6.646,135.42,135.35,15.3221]
[1726108115683,6.646,135.42,135.37,6.6484]
[1726108118888,6.6465,135.41,135.36,23.2703]
[1726108119183,14.28628905,135.41,135.36,23.2703]
[1726108120080,6.647,135.4,135.36,16.6214]
[1726108120587,6.6475,135.39,135.34,6.9151587]
[1726108121086,6.6485,135.37,135.34,0.2653587]
[1726108121481,6.6479,135.38,135.34,0.2653587]
[1726108121674,6.6475,135.39,135.34,6.9152587]
[1726108124867,6.6475,135.39,135.35,6.6494]
[1726108126784,29.38918905,135.41,135.36,6.6485]
[1726108127089,29.38918905,135.41,135.37,6.6484]
[1726108127090,7.63978905,135.41,135.37,6.6484]
[1726108127305,7.63978905,135.41,135.4,6.6469]
[1726108127792,15.1558,135.45,135.4,6.6469]
[1726108128114,7.63572186,135.44,135.4,6.6469]
[1726108129104,7.63572186,135.44,135.41,6.6464]
[1726108129271,7.63572186,135.44,135.4,6.6469]
[1726108130586,7.63572186,135.44,135.39,16.6177]
[1726108130767,1.28714039,135.46,135.42,6.6455]
[1726108130966,1.28714039,135.46,135.41,23.2615]
[1726108130967,8.93216629,135.46,135.41,23.2615]
[1726108131263,15.57636629,135.46,135.41,23.2615]
[1726108131804,6.6446,135.45,135.41,16.6151]
[1726108132576,8.93216629,135.46,135.4,6.6469]
[1726108132577,7.6450259,135.46,135.44,23.2575]
[1726108132775,0.2653587,135.49,135.44,23.2575]
[1726108132978,7.64463977,135.48,135.44,23.2575]
[1726108133691,7.64463977,135.48,135.45,6.6444]
[1726108134292,7.64463977,135.48,135.44,23.2574]
[1726108137805,14.28773977,135.48,135.44,16.6125]
[1726108140004,7.64463977,135.48,135.44,23.2573]
[1726108141005,14.28763977,135.48,135.44,16.6125]
[1726108142805,7.64463977,135.48,135.44,23.2572]
[1726108143103,7.64463977,135.48,135.45,6.644]
[1726108146600,7.64463977,135.48,135.46,6.6439]
[1726108147181,7.64463977,135.48,135.47,6.6435]
[1726108154582,7.64463977,135.48,135.47,21.31778178]
[1726108154792,0.2653587,135.49,135.48,6.643]
[1726108155117,0.2653587,135.49,135.47,6.6434]
[1726108155910,0.2653587,135.49,135.46,23.2531]
[1726108156116,0.2653587,135.49,135.47,6.6435]
[1726108157213,0.2653587,135.49,135.46,23.2531]
[1726108159633,0.2653587,135.49,135.41,16.2537]
[1726108159794,30.3344427,135.49,135.39,14.67428178]
[1726108159997,36.9774427,135.49,135.43,16.6135]
[1726108160197,36.9774427,135.49,135.43,23.2589]
[1726108160198,6.6432,135.48,135.43,23.2589]
[1726108160691,23.776884,135.47,135.41,6.6463]
[1726108161008,30.3344427,135.49,135.41,6.6463]
[1726108161213,30.3344427,135.49,135.42,6.6459]
[1726108161214,6.6435,135.47,135.42,6.6459]
[1726108161402,30.3344427,135.49,135.4,31.29138178]
[1726108161713,6.643,135.48,135.43,6.6453]
[1726108161889,6.6436,135.47,135.42,23.2597]
[1726108162489,36.9774427,135.49,135.43,6.6453]
[1726108164024,6.6432,135.48,135.43,6.6453]
[1726108165396,14.3667017,135.48,135.43,6.6453]
[1726108166020,7.7235017,135.48,135.44,6.6449]
[1726108168701,14.3667017,135.48,135.42,16.614]
[1726108169125,14.3667017,135.48,135.43,6.645]
[1726108169309,7.7235017,135.48,135.42,16.614]
[1726108169500,7.7235017,135.48,135.44,6.6446]
[1726108169795,7.7235017,135.48,135.45,6.6444]
[1726108170211,7.7235017,135.48,135.46,6.6439]
[1726108170413,0.2653587,135.49,135.46,6.6439]
[1726108173095,0.2653587,135.49,135.44,16.6116]
[1726108173096,0.2653587,135.49,135.45,6.6444]
[1726108173797,0.2653587,135.49,135.46,6.6439]
[1726108174812,6.9082587,135.49,135.44,23.2565]
[1726108175239,0.2653587,135.49,135.45,6.6444]
[1726108175433,6.9079587,135.49,135.44,16.6116]
[1726108175812,0.2653587,135.49,135.44,16.6116]
[1726108177340,0.2653587,135.49,135.45,6.6441]
[1726108179717,20.2653587,135.49,135.45,6.6441]
[1726108182348,20.2653587,135.49,135.46,6.644]
[1726108182520,0.2653587,135.49,135.46,6.644]
[1726108182938,0.2653587,135.49,135.47,6.6431]
[1726108183242,0.2653587,135.49,135.47,6.6435]
[1726108183424,0.2653587,135.49,135.46,31.28338178]
[1726108183425,0.2653587,135.49,135.46,16.6091]
[1726108183826,0.2653587,135.49,135.46,23.2529]
[1726108185143,0.2653587,135.49,135.47,6.6433]
[1726108186345,0.2653587,135.49,135.48,21.31728178]
[1726108189493,0.2653587,135.53,135.48,21.31728178]
[1726108189494,0.2653587,135.53,135.52,6.641]
[1726108189660,0.2653587,135.53,135.52,8.11649467]
[1726108189836,0.2653587,135.53,135.52,6.641]
[1726108190448,0.2653587,135.53,135.52,8.11650104]
[1726108191249,0.2653587,135.53,135.52,6.641]
[1726108191447,0.2653587,135.53,135.52,8.11647415]
[1726108192446,0.2653587,135.53,135.52,6.641]
[1726108198459,0.2653587,135.53,135.52,21.31528178]
[1726108199158,0.2653587,135.53,135.52,6.641]
[1726108199565,0.2653587,135.53,135.52,21.31528178]
[1726108200431,0.2653587,135.53,135.52,6.641]
[1726108200842,0.2653587,135.53,135.48,16.6074]
[1726108201565,0.2653587,135.53,135.52,6.641]
[1726108202244,0.2653587,135.53,135.5,23.2458]
[1726108202565,0.2653587,135.53,135.5,16.6041]
[1726108203147,0.2653587,135.53,135.46,16.6088]
[1726108203468,0.2653587,135.53,135.48,6.6426]
[1726108204973,0.2653587,135.53,135.49,6.6422]
[1726108205677,6.6415,135.51,135.46,23.2526]
[1726108205970,6.6422,135.5,135.43,23.2586]
[1726108206272,6.6425,135.49,135.44,6.6449]
[1726108206453,6.6418,135.51,135.43,16.6136]
[1726108206781,29.4975,135.52,135.46,6.6439]
[1726108207154,29.4975,135.52,135.47,6.6434]
[1726108207373,29.4975,135.52,135.46,23.2539]
[1726108207569,6.6415,135.51,135.46,23.2539]
[1726108209058,22.8564,135.52,135.46,16.61]
[1726108209267,23.776884,135.51,135.42,16.6137]
[1726108209779,6.6421,135.5,135.45,6.6442]
[1726108210082,23.776884,135.51,135.46,6.6439]
[1726108210453,22.8564,135.52,135.46,16.609]
[1726108211173,29.4975,135.52,135.46,23.2525]
[1726108211379,22.8564,135.52,135.46,16.609]
[1726108211547,22.8564,135.52,135.46,31.28328178]
[1726108212284,22.8564,135.52,135.48,6.6429]
[1726108212603,22.8564,135.52,135.46,16.609]
[1726108213190,22.8564,135.52,135.49,6.6421]
[1726108213392,22.8564,135.52,135.5,6.6416]
[1726108213592,0.2653587,135.53,135.5,6.6416]
[1726108214105,0.2653587,135.53,135.48,37.92338178]
[1726108214262,6.9062587,135.53,135.48,16.6066]
[1726108215298,6.9062587,135.53,135.48,23.2494]
[1726108215614,0.2653587,135.53,135.48,23.2494]
[1726108215771,0.2653587,135.53,135.49,6.6422]
[1726108216270,0.2653587,135.53,135.5,6.6418]
[1726108216466,0.2653587,135.53,135.49,6.6424]
[1726108216962,0.2653587,135.53,135.5,6.642]
[1726108217199,6.9059587,135.53,135.48,23.2494]
[1726108217381,0.2653587,135.53,135.49,6.6424]
[1726108218125,0.2653587,135.53,135.5,6.6419]
[1726108219399,0.2653587,135.53,135.48,14.67428178]
[1726108219699,0.2653587,135.53,135.52,6.641]
[1726108222187,0.2653587,135.53,135.52,22.79023429]
[1726108224311,0.2653587,135.57,135.52,22.79023429]
[1726108224312,0.2653587,135.57,135.56,23.2369]
[1726108224480,0.2653587,135.57,135.56,37.91118178]
[1726108226481,0.2653587,135.57,135.56,23.2369]
[1726108227079,0.2653587,135.57,135.56,16.5978]
[1726108227494,0.2653587,135.57,135.54,6.64]
[1726108228123,0.2653587,135.57,135.53,16.6013]
[1726108228289,22.4891,135.56,135.52,6.641]
[1726108230594,29.1283,135.56,135.49,31.27958178]
[1726108230800,6.6396,135.55,135.5,6.6419]
[1726108231105,6.6402,135.54,135.49,16.6053]
[1726108231306,22.4891,135.56,135.49,16.6053]
[1726108231614,29.1282,135.56,135.49,16.6053]
[1726108231813,29.1282,135.56,135.51,6.6413]
[1726108232498,22.4891,135.56,135.49,16.6053]
[1726108232707,22.4891,135.56,135.52,16.6026]
[1726108234718,22.4891,135.56,135.5,6.642]
[1726108235091,6.6396,135.55,135.5,6.642]
[1726108235632,36.85414504,135.56,135.51,6.6415]
[1726108237001,6.6396,135.55,135.5,6.6419]
[1726108237199,6.6406,135.53,135.49,16.6061]
[1726108237421,30.21504504,135.56,135.46,6.6437]
[1726108237422,6.642,135.51,135.46,6.6437]
[1726108237617,22.4191,135.5,135.46,6.6437]
[1726108237924,22.4191,135.5,135.47,6.6432]
[1726108238329,22.4191,135.5,135.45,16.6106]
[1726108238511,22.4191,135.5,135.49,6.6425]
[1726108239106,22.4191,135.5,135.48,23.2503]
[1726108239294,22.4191,135.5,135.42,0.2653587]
[1726108239501,23.776884,135.49,135.42,0.2653587]
[1726108239796,6.6436,135.47,135.42,23.5259587]
[1726108239994,23.776884,135.49,135.42,16.8800587]
[1726108240524,6.6435,135.47,135.42,23.5259587]
[1726108241124,23.776884,135.47,135.42,0.2653587]
[1726108241304,6.6445,135.46,135.42,0.2653587]
[1726108241626,23.776884,135.47,135.42,6.9112587]
[1726108241627,30.420484,135.47,135.42,6.9112587]
[1726108241832,6.644,135.46,135.42,0.2653587]
[1726108242230,23.776884,135.47,135.42,0.2653587]
[1726108243028,6.6446,135.45,135.42,0.2653587]
[1726108243545,30.130584,135.43,135.42,0.2653587]
[1726108243832,6.3537,135.43,135.42,0.2653587]
[1726108248531,7.9307435,135.47,135.42,6.9108587]
[1726108248532,22.2793,135.47,135.42,6.9108587]
[1726108250236,22.2793,135.47,135.44,6.6449]
[1726108250536,96.214874,135.54,135.44,6.6449]
[1726108250537,22.2793,135.51,135.44,16.6124]
[1726108250845,37.92910347,135.51,135.46,6.644]
[1726108252716,6.6427,135.49,135.44,23.257]
[1726108253162,23.776884,135.5,135.44,23.257]
[1726108253323,30.419084,135.5,135.44,23.257]
[1726108253716,23.776884,135.48,135.44,23.257]
[1726108253916,23.776884,135.48,135.44,16.6124]
[1726108254249,30.420084,135.48,135.42,6.9112587]
[1726108254937,6.6438,135.47,135.42,6.9112587]
[1726108256142,23.776884,135.48,135.42,0.2653587]
[1726108257126,37.92960347,135.51,135.43,16.6127]
[1726108257336,23.776884,135.5,135.45,6.6442]
[1726108257824,23.776884,135.5,135.45,6.6444]
[1726108258238,30.419384,135.5,135.44,6.6449]
[1726108258841,73.776884,135.5,135.42,0.2653587]
[1726108259934,23.776884,135.46,135.42,0.2653587]
[1726108260132,23.776884,135.46,135.42,6.9111587]
[1726108260525,6.643,135.48,135.43,6.6454]
[1726108260727,6.643,135.48,135.44,6.6447]
[1726108260728,23.776884,135.48,135.44,6.6447]
[1726108261242,31.50000375,135.48,135.42,16.8792587]
[1726108261548,23.776884,135.45,135.42,0.2653587]
[1726108262241,6.644,135.46,135.42,0.2653587]
[1726108262740,23.776884,135.45,135.42,0.2653587]
[1726108263429,46.593684,135.45,135.42,0.2653587]
[1726108263635,23.776884,135.43,135.42,0.2653587]
[1726108263840,30.422284,135.43,135.42,0.2653587]
[1726108265537,6.645,135.44,135.42,0.2653587]
[1726108266035,30.422284,135.43,135.42,0.2653587]
[1726108267251,6.645,135.44,135.42,0.2653587]
[1726108267847,23.776884,135.43,135.42,0.2653587]
[1726108268225,29.4613,135.45,135.42,0.2653587]
[1726108268954,22.8168,135.45,135.42,0.2653587]
[1726108269523,22.8168,135.45,135.42,6.9111587]
[1726108269921,7.72311975,135.48,135.42,6.9111587]
[1726108269922,14.36611975,135.48,135.43,6.6453]
[1726108271032,15.65319132,135.48,135.43,6.6453]
[1726108271559,23.776884,135.47,135.43,6.6453]
[1726108273630,30.420784,135.47,135.42,0.2653587]
[1726108273830,6.6441,135.46,135.42,0.2653587]
[1726108274051,7.72372526,135.46,135.42,6.9112587]
[1726108274253,23.776884,135.45,135.42,0.2653587]
[1726108274640,30.421484,135.45,135.42,0.2653587]
[1726108275358,23.776884,135.45,135.42,0.2653587]
[1726108276369,30.421384,135.45,135.42,0.2653587]
[1726108276660,6.645,135.44,135.42,0.2653587]
[1726108280241,30.422284,135.43,135.42,0.2653587]
[1726108280439,23.776884,135.43,135.42,0.2653587]
[1726108281256,14.36772526,135.46,135.42,0.2653587]
[1726108281460,7.72372526,135.46,135.42,0.2653587]
[1726108281660,6.6445,135.45,135.42,0.2653587]
[1726108282034,6.6451,135.44,135.42,0.2653587]
[1726108282266,6.6454,135.43,135.42,0.2653587]
[1726108282470,7.72372526,135.46,135.42,0.2653587]
[1726108282641,23.776884,135.45,135.42,0.2653587]
[1726108283234,23.776884,135.43,135.42,0.2653587]
[1726108284569,7.72515509,135.44,135.42,0.2653587]
[1726108285865,14.37015509,135.44,135.42,0.2653587]
[1726108287169,7.72515509,135.44,135.42,0.2653587]
[1726108288085,30.422284,135.43,135.42,0.2653587]
[1726108291283,23.776884,135.43,135.42,0.2653587]
[1726108295371,9.01272066,135.44,135.42,0.2653587]
[1726108295571,7.72515509,135.44,135.42,0.2653587]
[1726108295768,50.0,135.52,135.42,0.2653587]
[1726108295973,7.72321766,135.47,135.42,0.2653587]
[1726108296968,7.72321766,135.47,135.43,16.6129]
[1726108297279,6.642,135.51,135.46,6.644]
[1726108297489,15.65020378,135.51,135.46,6.644]
[1726108297671,15.65020378,135.51,135.45,6.6445]
[1726108297874,9.00820378,135.51,135.43,16.6129]
[1726108298063,6.6425,135.5,135.45,6.6443]
[1726108298884,9.00820378,135.51,135.45,6.6443]
[1726108299555,15.64990378,135.51,135.45,6.6443]
[1726108299888,9.00820378,135.51,135.43,16.6129]
[1726108300261,23.776884,135.5,135.43,16.6129]
[1726108300570,23.776884,135.48,135.43,23.2583]
[1726108301284,23.776884,135.5,135.45,16.6101]
[1726108301486,9.00820378,135.51,135.43,29.17471335]
[1726108301803,22.3921587,135.57,135.46,15.0212]
[1726108302099,7.71887907,135.56,135.53,6.6405]
[1726108302291,7.71887907,135.56,135.52,6.641]
[1726108302790,7.71887907,135.56,135.51,23.2443]
[1726108303980,14.35797907,135.56,135.51,23.2443]
[1726108305791,6.6401,135.54,135.49,6.6422]
[1726108306170,30.416484,135.55,135.49,6.6422]
[1726108308200,6.6401,135.54,135.48,6.6429]
[1726108308379,6.6401,135.54,135.49,6.6423]
[1726108309269,23.776884,135.55,135.47,23.2508]
[1726108309270,30.417484,135.53,135.47,23.2508]
[1726108309667,6.6406,135.53,135.47,23.2508]
[1726108310685,6.6413,135.52,135.47,23.2508]
[1726108311192,23.776884,135.55,135.48,6.6427]
[1726108311193,6.6406,135.53,135.48,6.6427]
[1726108311494,6.6401,135.54,135.49,6.6424]
[1726108312264,14.3544022,135.54,135.49,6.6424]
[1726108312879,7.7143022,135.54,135.5,6.6419]
[1726108313484,7.7143022,135.54,135.51,6.6415]
[1726108314192,7.7143022,135.54,135.49,16.6054]
[1726108314997,14.3544022,135.54,135.49,23.2475]
[1726108315199,14.3544022,135.54,135.49,16.6054]
[1726108316172,7.7143022,135.54,135.5,6.642]
[1726108316575,7.7143022,135.54,135.51,6.6413]
[1726108316973,8.19073771,135.57,135.52,6.641]
[1726108317179,8.19073771,135.57,135.53,6.6405]
[1726108317381,1.55173771,135.57,135.53,6.6405]
[1726108318501,8.19033771,135.57,135.52,6.6409]
[1726108318796,1.55173771,135.57,135.53,6.6405]
[1726108319376,1.55173771,135.57,135.51,16.6031]
[1726108319377,8.19053771,135.57,135.51,23.2441]
[1726108319889,6.6393,135.56,135.51,16.6031]
[1726108320489,6.6396,135.55,135.51,16.6031]
[1726108320678,6.6401,135.54,135.49,6.6424]
[1726108321374,6.6401,135.54,135.5,6.642]
[1726108325586,6.6401,135.54,135.49,6.6424]
[1726108327094,6.6411,135.52,135.48,16.6074]
[1726108327797,14.36088437,135.52,135.48,16.6074]
[1726108328903,6.6416,135.51,135.46,21.6651]
[1726108329111,6.6416,135.51,135.42,6.8111587]
[1726108329112,23.776884,135.51,135.42,16.2835587]
[1726108329415,30.419384,135.49,135.44,6.6449]
[1726108329977,23.776884,135.49,135.42,23.5254587]
[1726108330173,23.776884,135.49,135.42,16.8799587]
[1726108330788,6.644,135.46,135.42,16.8799587]
[1726108330992,6.6445,135.45,135.42,0.2653587]
[1726108331781,6.6451,135.44,135.42,0.2653587]
[1726108331975,73.776884,135.49,135.42,0.2653587]
[1726108332476,6.6445,135.45,135.42,0.2653587]
[1726108332694,6.6437,135.47,135.42,0.2653587]
[1726108333080,6.6441,135.46,135.42,0.2653587]
[1726108335500,6.6434,135.48,135.42,0.2653587]
[1726108335722,23.776884,135.46,135.42,0.2653587]
[1726108336393,30.420884,135.46,135.42,0.2653587]
[1726108336597,6.6435,135.47,135.42,0.2653587]
[1726108336796,6.6435,135.47,135.42,6.9112587]
[1726108337300,6.643,135.49,135.42,6.9112587]
[1726108337683,6.6431,135.48,135.42,6.9112587]
[1726108338085,14.3663702,135.48,135.42,6.9112587]
[1726108338482,14.3663702,135.48,135.42,0.2653587]
[1726108338483,6.6441,135.46,135.42,0.2653587]
[1726108344302,6.6446,135.45,135.42,0.2653587]
[1726108344825,6.644,135.46,135.42,0.2653587]
[1726108346421,9.01046305,135.48,135.42,1.7421911]
[1726108346601,9.01046305,135.48,135.42,1.74193645]
[1726108346807,9.01046305,135.48,135.42,0.2653587]
[1726108347296,6.6436,135.47,135.43,6.6454]
[1726108347499,15.65356305,135.48,135.43,6.6454]
[1726108348620,6.6435,135.47,135.43,6.6454]
[1726108351616,23.776884,135.47,135.42,0.2653587]
[1726108352192,6.6445,135.45,135.42,0.2653587]
[1726108353015,7.72479767,135.46,135.42,0.2653587]
[1726108353016,6.6454,135.43,135.42,0.2653587]
[1726108353245,23.776884,135.45,135.42,0.2653587]
[1726108353514,30.421384,135.45,135.42,0.2653587]
[1726108353891,23.776884,135.45,135.42,0.2653587]
[1726108356411,23.776884,135.45,135.42,6.9112587]
[1726108357521,23.776884,135.45,135.42,0.2653587]
[1726108360336,7.72479767,135.46,135.42,6.9111587]
[1726108362945,14.36879767,135.46,135.42,0.2653587]
[1726108363437,30.421484,135.45,135.42,0.2653587]
[1726108364134,7.72237121,135.44,135.42,0.2653587]
[1726108365913,23.776884,135.43,135.42,0.2653587]
[1726108366116,23.776884,135.43,135.38,0.2653587]
[1726108366117,23.776884,135.41,135.38,0.2653587]
[1726108366546,7.72237121,135.44,135.38,6.9130587]
[1726108366838,23.776884,135.43,135.38,6.9130587]
[1726108367039,30.422384,135.43,135.38,6.9130587]
[1726108367241,23.776884,135.43,135.39,6.6474]
[1726108367417,23.776884,135.43,135.38,0.2653587]
[1726108367418,7.72237121,135.44,135.4,6.6469]
[1726108368840,7.72237121,135.44,135.41,6.6463]
[1726108370126,23.776884,135.43,135.38,0.2653587]
[1726108370443,23.776884,135.43,135.38,6.9131587]
[1726108370830,23.776884,135.43,135.39,6.6472]
[1726108371542,7.72237121,135.44,135.4,6.6469]
[1726108378325,23.776884,135.43,135.39,6.6473]
[1726108379049,7.72812569,135.42,135.39,6.6473]
[1726108380322,7.72812569,135.42,135.38,6.9131587]
[1726108380851,7.72812569,135.42,135.39,6.6473]
[1726108381056,7.72812569,135.42,135.4,6.6468]
[1726108381234,7.93160519,135.46,135.41,6.6464]
[1726108381428,7.72511765,135.45,135.42,6.6459]
[1726108381733,6.6441,135.46,135.42,6.6459]
[1726108381937,2.99666468,135.47,135.42,6.6459]
[1726108382125,28.7032,135.48,135.43,6.6454]
[1726108382936,6.6426,135.49,135.44,6.6449]
[1726108383269,28.9478,135.51,135.46,6.644]
[1726108383761,6.643,135.48,135.42,6.6455]
[1726108384052,6.643,135.48,135.4,15.3476]
[1726108384053,6.6426,135.49,135.44,6.6447]
[1726108386252,30.419084,135.5,135.45,6.6444]
[1726108386446,6.6426,135.49,135.44,6.6449]
[1726108387142,23.776884,135.5,135.43,16.6131]
[1726108387143,30.418984,135.5,135.45,6.6444]
[1726108387647,30.418984,135.5,135.44,6.6449]
[1726108387852,30.418984,135.5,135.43,16.6131]
[1726108388357,23.776884,135.5,135.46,6.6439]
[1726108388864,23.776884,135.5,135.45,6.6444]
[1726108389658,7.72207828,135.49,135.45,6.6444]
[1726108390653,7.72207828,135.49,135.43,16.6131]
[1726108390847,14.36457828,135.49,135.44,6.6449]
[1726108391046,7.72207828,135.49,135.45,6.6444]
[1726108396163,7.72207828,135.49,135.45,16.6103]
[1726108396365,7.72207828,135.49,135.48,6.643]
[1726108396668,6.9061587,135.53,135.47,23.251]
[1726108396978,14.62711349,135.53,135.48,6.6428]
[1726108397966,7.98631349,135.53,135.49,6.6425]
[1726108400166,7.98631349,135.53,135.5,6.6419]
[1726108400374,7.98631349,135.53,135.47,16.608]
[1726108401249,14.62691349,135.53,135.49,6.6423]
[1726108401669,7.98631349,135.53,135.5,6.6419]
[1726108403159,7.98631349,135.53,135.51,6.6415]
[1726108403454,7.98631349,135.53,135.52,6.641]
[1726108403659,0.2653587,135.53,135.52,6.641]
[1726108404654,0.2653587,135.53,135.51,23.2447]
[1726108408998,0.2653587,135.53,135.5,6.6419]
[1726108410964,0.2653587,135.53,135.48,16.6071]
[1726108410965,6.9059587,135.53,135.49,6.6425]
[1726108411162,6.9059587,135.53,135.48,23.25]
[1726108411363,6.6411,135.52,135.48,23.25]
[1726108411776,6.6411,135.52,135.48,16.6071]
[1726108412073,15.4601,135.52,135.45,16.611]
[1726108412274,22.1012,135.52,135.47,6.6431]
[1726108412476,22.1012,135.52,135.48,6.643]
[1726108413381,22.1012,135.52,135.47,6.6434]
[1726108414276,6.6417,135.51,135.45,23.255]
[1726108414467,6.6417,135.51,135.46,6.6439]
[1726108414871,6.6417,135.51,135.47,6.6434]
[1726108415381,29.82267468,135.52,135.47,6.6434]
[1726108415776,7.72147468,135.52,135.48,6.6429]
[1726108416275,7.72147468,135.52,135.49,6.6424]
[1726108416688,0.2653587,135.53,135.49,16.6053]
[1726108417208,0.2653587,135.53,135.51,6.6415]
[1726108417486,0.2653587,135.53,135.49,16.6053]
[1726108419492,6.9059587,135.53,135.49,23.2478]
[1726108420474,6.6411,135.52,135.46,16.6096]
[1726108421361,6.6411,135.52,135.47,6.6435]
[1726108422369,30.418684,135.51,135.46,23.2535]
[1726108422574,12.7362,135.52,135.47,6.6433]
[1726108424585,30.418384,135.51,135.46,23.2535]
[1726108425383,6.6421,135.5,135.46,16.6096]
[1726108428070,6.6421,135.5,135.46,23.2535]
[1726108429396,30.418484,135.51,135.46,23.2535]
[1726108430389,6.6421,135.5,135.46,16.6096]
[1726108431089,6.643,135.48,135.43,23.2585]
[1726108431287,6.6436,135.47,135.43,23.2585]
[1726108431691,6.6436,135.47,135.43,16.6132]
[1726108433789,6.644,135.46,135.41,6.6464]
[1726108434296,15.6552659,135.46,135.41,6.6464]
[1726108435484,6.6445,135.45,135.41,6.6464]
[1726108436888,15.6553659,135.46,135.41,6.6464]
[1726108440178,30.421484,135.45,135.41,6.6464]
[1726108440378,46.710684,135.45,135.41,6.6464]
[1726108440677,46.710684,135.45,135.4,23.2637]
[1726108442112,6.645,135.44,135.4,23.2637]
[1726108442704,46.710684,135.45,135.4,23.2637]
[1726108443003,46.710684,135.45,135.41,6.6463]
[1726108444199,40.066084,135.45,135.41,6.6463]
[1726108446402,16.2892,135.45,135.42,6.6458]
[1726108451804,22.9337,135.45,135.4,23.2634]
[1726108452685,22.9337,135.45,135.41,6.6463]
[1726108453602,6.645,135.44,135.4,16.6168]
[1726108453997,14.37069976,135.44,135.4,16.6168]
[1726108454805,6.6456,135.43,135.38,0.2653587]
[1726108454994,7.72569976,135.44,135.38,0.2653587]
[1726108454995,13.1103,135.42,135.38,0.2653587]
[1726108455204,6.4643,135.42,135.39,16.6179]
[1726108455410,7.72569976,135.44,135.39,16.6179]
[1726108455718,7.72569976,135.44,135.41,6.6464]
[1726108456419,7.72569976,135.44,135.39,16.6179]
[1726108456420,7.72569976,135.44,135.4,6.6468]
[1726108458691,7.72569976,135.44,135.41,6.6464]
[1726108459007,7.72569976,135.44,135.39,16.6179]
[1726108459008,23.776884,135.43,135.39,16.6179]
[1726108459912,30.422484,135.43,135.39,16.6179]
[1726108460394,23.776884,135.43,135.39,23.2652]
[1726108462114,30.422384,135.43,135.39,23.2652]
[1726108462313,30.422384,135.43,135.39,16.6179]
[1726108463598,7.72569976,135.44,135.38,0.2653587]
[1726108463599,23.776884,135.41,135.38,0.2653587]
[1726108463808,6.6474,135.4,135.38,0.2653587]
[1726108464305,14.37435804,135.4,135.38,0.2653587]
[1726108465105,6.6474,135.39,135.38,0.2653587]
[1726108466715,30.424284,135.39,135.38,0.2653587]
[1726108466911,31.7122742,135.39,135.38,0.2653587]
[1726108467310,30.424284,135.39,135.38,0.2653587]
[1726108467507,36.622484,135.39,135.38,0.2653587]
[1726108467716,52.305084,135.39,135.38,0.2653587]
[1726108468328,23.776884,135.38,135.34,0.2653587]
[1726108469395,6.6488,135.37,135.34,0.2653587]
[1726108479515,23.776884,135.38,135.34,0.2653587]
[1726108480429,6.6494,135.35,135.34,0.2653587]
[1726108481332,30.426284,135.35,135.34,0.2653587]
[1726108486133,23.776884,135.35,135.34,0.2653587]
[1726108487235,30.426284,135.35,135.34,0.2653587]
[1726108500350,30.425684,135.37,135.34,0.2653587]
[1726108500548,26.6489,135.36,135.34,0.2653587]
[1726108500727,6.6489,135.36,135.34,0.2653587]
[1726108504139,6.6508,135.37,135.34,0.2653587]
[1726108504372,21.8808,135.39,135.35,6.6493]
[1726108504646,6.647,135.4,135.35,6.6493]
[1726108507950,38.8265,135.43,135.35,32.1349]
[1726108508152,23.0259,135.46,135.36,1.47743095]
[1726108508327,6.645,135.44,135.38,6.6474]
[1726108508652,6.645,135.44,135.38,8.12444595]
[1726108509036,6.645,135.44,135.38,6.6474]
[1726108510364,6.645,135.44,135.39,6.6474]
[1726108512362,30.421384,135.45,135.4,6.6468]
[1726108513370,6.6445,135.45,135.41,6.6464]